lending/lending_fUSD_20250516
["ID","MTS","AMOUNT","RATE_DAILY","PERIOD"]
[361261996,1747403452231,-400.0,0.00016438,2]
[361261997,1747403452241,-602.29,0.00016438,2]
[361261998,1747403452250,-400.0,0.00016438,2]
[361261999,1747403452260,-1628.83,0.00016438,2]
[361262000,1747403452270,-400.0,0.00016438,2]
[361262001,1747403452279,-400.0,0.00016438,2]
[361262002,1747403452289,-400.0,0.00016438,2]
[361262003,1747403452298,-400.0,0.00016438,2]
[361262004,1747403452308,-1475.59,0.00016438,2]
[361262005,1747403452318,-1121.68,0.00016438,2]
[361262006,1747403452328,-1410.09,0.00016438,2]
[361262007,1747403452337,-400.0,0.00016438,2]
[361262008,1747403452347,-400.0,0.00016438,2]
[361262009,1747403452356,-669.92,0.00016438,2]
[361262010,1747403452366,-400.0,0.00016438,2]
[361262011,1747403452376,-2477.42,0.00016438,2]
[361262012,1747403452385,-515.78,0.00016438,2]
[361262013,1747403452395,-400.0,0.00016438,2]
[361262014,1747403452404,-400.0,0.00016438,2]
[361262015,1747403452415,-400.0,0.00016438,2]
[361262016,1747403452424,-424.39,0.00016438,2]
[361262017,1747403452436,-1194.11,0.00016438,2]
[361262018,1747403452446,-151.0,0.00016438,2]
[361262019,1747403452457,-668.41,0.00016438,2]
[361262020,1747403452466,-3583.03,0.00016438,2]
[361262021,1747403452475,-151.0,0.00016438,2]
[361262022,1747403452485,-7803.49,0.00016438,2]
[361262023,1747403452495,-151.0,0.00016438,2]
[361262024,1747403452505,-158.36004447,0.00016438,2]
[361262025,1747403452514,-743.11,0.00016438,2]
[361262026,1747403452524,-151.0,0.00016438,2]
[361262027,1747403452534,-151.0,0.00016438,2]
[361262028,1747403452543,-151.0,0.00016438,2]
[361262029,1747403452553,-400.0,0.00016438,2]
[361262030,1747403452562,-9668.4131464,0.00016438,2]
[361262031,1747403452572,-724.8,0.00016438,2]
[361262032,1747403452581,-400.0,0.00016438,2]
[361262033,1747403452591,-605.43,0.00016438,2]
[361262034,1747403452600,-577.12,0.00016438,2]
[361262035,1747403452610,-400.0,0.00016438,2]
[361262036,1747403452619,-612.52,0.00016438,2]
[361262037,1747403452629,-400.0,0.00016438,2]
[361262038,1747403452639,-816.94,0.00016438,2]
[361262039,1747403452647,-400.0,0.00016438,2]
[361262040,1747403452657,-400.0,0.00016438,2]
[361262041,1747403452666,-517.46,0.00016438,2]
[361262042,1747403452676,-517.46,0.00016438,2]
[361262043,1747403452687,-5592.696949,0.00016438,2]
[361262044,1747403452696,-517.46,0.00016438,2]
[361262045,1747403452705,-5592.696949,0.00016438,2]
[361262046,1747403452715,-5592.696949,0.00016438,2]
[361262047,1747403452724,-400.0,0.00016438,2]
[361262048,1747403452734,-517.46,0.00016438,2]
[361262049,1747403452743,-517.46,0.00016438,2]
[361262050,1747403452753,-517.46,0.00016438,2]
[361262051,1747403452762,-337.33013277,0.00016438,2]
[361262052,1747403452772,-517.46,0.00016438,2]
[361262053,1747403452783,-277.96441247,0.00016438,2]
[361262054,1747403452796,-866.11,0.00016438,2]
[361262055,1747403452805,-1427.03,0.00016438,2]
[361262056,1747403452815,-1456.29,0.00016438,2]
[361262057,1747403452825,-400.0,0.00016438,2]
[361262058,1747403452837,-400.0,0.00016438,2]
[361262059,1747403452847,-1929.61,0.00016438,2]
[361262060,1747403452857,-400.0,0.00016438,2]
[361262061,1747403452867,-400.0,0.00016438,2]
[361262062,1747403452876,-400.0,0.00016438,2]
[361262063,1747403452885,-400.0,0.00016438,2]
[361262064,1747403452895,-306.14296315,0.00016438,2]
[361262065,1747403452904,-400.0,0.00016438,2]
[361262066,1747403452913,-151.0,0.00016438,2]
[361262067,1747403452923,-400.0,0.00016438,2]
[361262068,1747403452932,-400.0,0.00016438,2]
[361262069,1747403452942,-400.0,0.00016438,2]
[361262070,1747403452951,-400.0,0.00016438,2]
[361262071,1747403452960,-239.11516575,0.00016438,2]
[361262072,1747403452970,-400.0,0.00016438,2]
[361262073,1747403452979,-150.0,0.00016438,2]
[361262074,1747403452988,-352.86,0.00016438,2]
[361262075,1747403452997,-151.0,0.00016439,2]
[361262076,1747403453008,-215.890149,0.00016439,2]
[361262077,1747403453018,-215.890149,0.00016439,2]
[361262078,1747403453027,-151.0,0.00016439,2]
[361262079,1747403453037,-151.0,0.00016439,2]
[361262080,1747403453047,-151.0,0.00016439,2]
[361262081,1747403453056,-151.0,0.00016439,2]
[361262082,1747403453065,-6724.1962923,0.00016439,2]
[361262083,1747403453075,-126212.7761474,0.00016439,2]
[361262084,1747403453084,-424.042046,0.00016439,2]
[361262085,1747403453093,-424.042046,0.00016439,2]
[361262086,1747403453102,-151.0,0.00016439,2]
[361262087,1747403453112,-151.0,0.00016439,2]
[361262088,1747403453121,-2127.4302299,0.00016439,2]
[361262089,1747403453131,-2139.263193,0.00016439,2]
[361262090,1747403453140,-1021.514185,0.00016439,2]
[361262091,1747403453149,-15099.1725859,0.0001645,2]
[361262092,1747403453159,-151.0,0.00016461,2]
[361262093,1747403453169,-151.0,0.00016461,2]
[361262094,1747403453178,-151.0,0.00016461,2]
[361262095,1747403453188,-506.7729391,0.00016473,2]
[361262096,1747403453197,-500.0,0.00016473,2]
[361262097,1747403453206,-500.0,0.00016473,2]
[361262098,1747403453216,-500.0,0.00016473,2]
[361262099,1747403453225,-500.0,0.00016473,2]
[361262100,1747403453234,-215.72075723,0.00016473,2]
[361262101,1747403453244,-155.65620909,0.00016473,2]
[361262102,1747403453253,-500.0,0.00016473,2]
[361262103,1747403453263,-500.0,0.00016473,2]
[361262104,1747403453272,-507.23104748,0.00016473,2]
[361262105,1747403453281,-495.96018104,0.00016473,2]
[361262106,1747403453291,-500.75801493,0.00016473,2]
[361262107,1747403453300,-156.66002964,0.00016473,2]
[361262108,1747403453310,-208.23793323,0.00016473,2]
[361262109,1747403453319,-500.0,0.00016473,2]
[361262110,1747403453329,-307.60775434,0.00016473,2]
[361262111,1747403453339,-500.0,0.00016473,2]
[361262112,1747403453348,-500.0,0.00016473,2]
[361262113,1747403453358,-500.0,0.00016473,2]
[361262114,1747403453368,-500.0,0.00016473,2]
[361262115,1747403453377,-500.0,0.00016473,2]
[361262116,1747403453387,-500.0,0.00016473,2]
[361262117,1747403453397,-500.0,0.00016473,2]
[361262118,1747403453406,-500.0,0.00016473,2]
[361262119,1747403453416,-500.0,0.00016473,2]
[361262120,1747403453426,-500.0,0.00016473,2]
[361262121,1747403453437,-151.0,0.00016473,2]
[361262122,1747403453447,-151.0,0.00016473,2]
[361262123,1747403453457,-628.0,0.00016486,2]
[361262124,1747403453466,-798.0,0.00016486,2]
[361262125,1747403453475,-1457.0,0.00016486,2]
[361262126,1747403453485,-584.0,0.00016486,2]
[361262127,1747403453495,-553.0,0.00016486,2]
[361262128,1747403453505,-919.0,0.00016486,2]
[361262129,1747403453515,-1251.0,0.00016486,2]
[361262130,1747403453525,-150.0,0.00016486,2]
[361262131,1747403453535,-879.0,0.00016486,2]
[361262132,1747403453545,-530.83,0.00016489,2]
[361262133,1747403453554,-151.0,0.0001649,2]
[361262134,1747403453564,-151.0,0.0001649,2]
[361262135,1747403453573,-151.0,0.0001649,2]
[361262136,1747403453583,-151.0,0.0001649,2]
[361262137,1747403453592,-23410.604663,0.0001649,2]
[361262138,1747403453602,-340.0,0.000165,2]
[361262139,1747403453611,-170.0,0.000165,2]
[361262140,1747403453621,-1422.15987736,0.00016521,2]
[361262141,1747403453632,-200.0,0.00016602,2]
[361262142,1747403453642,-517.46,0.00016603,2]
[361262143,1747403453651,-166.590599,0.00016604,2]
[361262144,1747403453660,-166.590599,0.00016604,2]
[361262145,1747403453669,-295.933838,0.00016604,2]
[361262146,1747403453679,-151.0,0.00016604,2]
[361262147,1747403453691,-151.0,0.00016604,2]
[361262148,1747403453701,-151.0,0.00016604,2]
[361262149,1747403453710,-151.0,0.00016604,2]
[361262150,1747403453720,-151.0,0.00016604,2]
[361262151,1747403453730,-151.0,0.00016604,2]
[361262152,1747403453739,-151.0,0.00016604,2]
[361262153,1747403453748,-151.0,0.00016604,2]
[361262154,1747403453758,-267.012939,0.00016604,2]
[361262155,1747403453767,-151.0,0.00016604,2]
[361262156,1747403453776,-151.0,0.00016604,2]
[361262157,1747403453786,-151.0,0.00016604,2]
[361262158,1747403453796,-151.0,0.00016604,2]
[361262159,1747403453805,-215.890149,0.00016604,2]
[361262160,1747403453815,-151.0,0.00016604,2]
[361262161,1747403453824,-215.890149,0.00016604,2]
[361262162,1747403453836,-151.0,0.00016604,2]
[361262163,1747403453845,-151.0,0.00016604,2]
[361262164,1747403453854,-151.0,0.00016604,2]
[361262165,1747403453863,-424.042046,0.00016604,2]
[361262166,1747403453872,-424.042046,0.00016604,2]
[361262167,1747403453882,-187.164056,0.00016604,2]
[361262168,1747403453891,-1076.0,0.00016604,2]
[361262169,1747403453900,-204.97704875,0.00016612,2]
[361262170,1747403453909,-1422.15987736,0.00016612,2]
[361262171,1747403453919,-153.67080794,0.00016624,2]
[361262172,1747403453929,-150.0,0.00016653,2]
[361262173,1747403453940,-317.07,0.00016653,2]
[361262174,1747403453950,-150.0,0.00016653,2]
[361262175,1747403453960,-150.0,0.00016653,2]
[361262176,1747403453970,-150.0,0.00016653,2]
[361262177,1747403453980,-150.0,0.00016653,2]
[361262178,1747403453990,-6700.0,0.000167,6]
[361262179,1747403454001,-1422.15987736,0.00016703,2]
[361262180,1747403454010,-572.87,0.0001671,2]
[361262181,1747403454019,-572.87,0.0001671,2]
[361262182,1747403454029,-530.83,0.00016711,2]
[361262183,1747403454039,-530.83,0.00016711,2]
[361262184,1747403454048,-530.83,0.00016711,2]
[361262185,1747403454059,-530.83,0.00016711,2]
[361262186,1747403454069,-530.83,0.00016711,2]
[361262187,1747403454078,-530.83,0.00016711,2]
[361262188,1747403454088,-530.83,0.00016711,2]
[361262189,1747403454097,-572.87,0.00016711,2]
[361262190,1747403454107,-572.87,0.00016711,2]
[361262191,1747403454117,-572.87,0.00016711,2]
[361262192,1747403454126,-572.87,0.00016711,2]
[361262193,1747403454137,-517.46,0.00016711,2]
[361262194,1747403454146,-517.46,0.00016711,2]
[361262195,1747403454158,-517.46,0.00016711,2]
[361262196,1747403454168,-517.46,0.00016711,2]
[361262197,1747403454177,-1075.369,0.00016711,2]
[361262198,1747403454188,-166.590599,0.00016712,2]
[361262199,1747403454198,-166.590599,0.00016712,2]
[361262200,1747403454207,-166.590599,0.00016712,2]
[361262201,1747403454216,-166.590599,0.00016712,2]
[361262202,1747403454226,-166.590599,0.00016712,2]
[361262203,1747403454236,-166.590599,0.00016712,2]
[361262204,1747403454245,-166.590599,0.00016712,2]
[361262205,1747403454255,-166.590599,0.00016712,2]
[361262206,1747403454264,-166.590599,0.00016712,2]
[361262207,1747403454274,-166.590603,0.00016712,2]
[361262208,1747403454283,-162.219803,0.00016712,2]
[361262209,1747403454587,-400.0,0.00016712,2]
[361262210,1747403454615,-400.0,0.00016712,2]
[361262211,1747403454624,-400.0,0.00016712,2]
[361262212,1747403454633,-294.95917121,0.00016712,2]
[361262213,1747403454644,-400.0,0.00016712,2]
[361262214,1747403454654,-176.505184,0.00016712,2]
[361262215,1747403454663,-400.0,0.00016712,2]
[361262216,1747403454673,-400.0,0.00016712,2]
[361262217,1747403454682,-400.0,0.00016712,2]
[361262218,1747403454692,-400.0,0.00016712,2]
[361262219,1747403454701,-400.0,0.00016712,2]
[361262220,1747403454710,-400.0,0.00016712,2]
[361262221,1747403454720,-533.22455469,0.00016712,2]
[361262222,1747403454729,-400.0,0.00016712,2]
[361262223,1747403454739,-400.0,0.00016712,2]
[361262224,1747403454748,-408.58618199,0.00016712,2]
[361262225,1747403454757,-475.48417206,0.00016712,2]
[361262226,1747403454766,-151.0,0.00016712,2]
[361262227,1747403454775,-151.0,0.00016712,2]
[361262228,1747403454785,-151.0,0.00016712,2]
[361262229,1747403454794,-151.0,0.00016712,2]
[361262230,1747403454803,-151.0,0.00016712,2]
[361262231,1747403454813,-209.227994,0.00016712,2]
[361262232,1747403454824,-400.0,0.00016712,2]
[361262233,1747403454833,-400.0,0.00016712,2]
[361262234,1747403454846,-400.0,0.00016712,2]
[361262235,1747403454856,-400.0,0.00016712,2]
[361262236,1747403454865,-227.9341103,0.00016712,2]
[361262237,1747403454875,-162.86944278,0.00016712,2]
[361262238,1747403454885,-155.29460036,0.00016712,2]
[361262239,1747403454894,-400.0,0.00016712,2]
[361262240,1747403454905,-400.0,0.00016712,2]
[361262241,1747403454916,-400.0,0.00016712,2]
[361262242,1747403454926,-400.0,0.00016712,2]
[361262243,1747403454936,-400.0,0.00016712,2]
[361262244,1747403454945,-400.0,0.00016712,2]
[361262245,1747403454954,-400.0,0.00016712,2]
[361262246,1747403454963,-408.08732889,0.00016712,2]
[361262247,1747403454973,-400.0,0.00016712,2]
[361262248,1747403454983,-400.0,0.00016712,2]
[361262249,1747403454992,-400.0,0.00016712,2]
[361262250,1747403455001,-456.08617071,0.00016712,2]
[361262251,1747403455011,-400.0,0.00016712,2]
[361262252,1747403455020,-400.0,0.00016712,2]
[361262253,1747403455029,-530.66,0.00016712,2]
[361262254,1747403455039,-400.0,0.00016712,2]
[361262255,1747403455048,-400.0,0.00016712,2]
[361262256,1747403455057,-400.0,0.00016712,2]
[361262257,1747403455066,-400.0,0.00016712,2]
[361262258,1747403455075,-400.0,0.00016712,2]
[361262259,1747403455084,-400.0,0.00016712,2]
[361262260,1747403455093,-400.0,0.00016712,2]
[361262261,1747403455103,-152.58653849,0.00016712,2]
[361262262,1747403455112,-400.0,0.00016712,2]
[361262263,1747403455121,-400.0,0.00016712,2]
[361262264,1747403455131,-400.0,0.00016712,2]
[361262265,1747403455140,-858.12,0.00016712,2]
[361262266,1747403455149,-400.0,0.00016712,2]
[361262267,1747403455159,-400.0,0.00016712,2]
[361262268,1747403455168,-400.0,0.00016712,2]
[361262269,1747403455177,-400.0,0.00016712,2]
[361262270,1747403455187,-535.81098463,0.00016712,2]
[361262271,1747403455196,-400.0,0.00016712,2]
[361262272,1747403455206,-400.0,0.00016712,2]
[361262273,1747403455215,-400.0,0.00016712,2]
[361262274,1747403455225,-400.0,0.00016712,2]
[361262275,1747403455234,-685.86,0.00016712,2]
[361262276,1747403455244,-944.69,0.00016712,2]
[361262277,1747403455253,-400.63,0.00016712,2]
[361262278,1747403455263,-400.0,0.00016712,2]
[361262279,1747403455273,-473.00402419,0.00016712,2]
[361262280,1747403455282,-335.81259945,0.00016712,2]
[361262281,1747403455292,-517.83459967,0.00016712,2]
[361262282,1747403455301,-571.1,0.00016712,2]
[361262283,1747403455310,-327.29631515,0.00016712,2]
[361262284,1747403455320,-462.16854884,0.00016712,2]
[361262285,1747403455329,-400.0,0.00016712,2]
[361262286,1747403455339,-400.0,0.00016712,2]
[361262287,1747403455348,-400.0,0.00016712,2]
[361262288,1747403455357,-400.0,0.00016712,2]
[361262289,1747403455366,-400.0,0.00016712,2]
[361262290,1747403455376,-400.0,0.00016712,2]
[361262291,1747403455386,-400.0,0.00016712,2]
[361262292,1747403455395,-400.0,0.00016712,2]
[361262293,1747403455404,-161.13745252,0.00016712,2]
[361262294,1747403455413,-400.0,0.00016712,2]
[361262295,1747403455423,-400.0,0.00016712,2]
[361262296,1747403455432,-171.51276028,0.00016712,2]
[361262297,1747403455442,-400.0,0.00016712,2]
[361262298,1747403455451,-512.59,0.00016712,2]
[361262299,1747403455460,-1000.0,0.00016712,2]
[361262300,1747403455470,-400.09,0.00016712,2]
[361262301,1747403455480,-497.25,0.00016712,2]
[361262302,1747403455489,-400.0,0.00016712,2]
[361262303,1747403455499,-400.0,0.00016712,2]
[361262304,1747403455508,-400.0,0.00016712,2]
[361262305,1747403455518,-400.0,0.00016712,2]
[361262306,1747403455528,-400.0,0.00016712,2]
[361262307,1747403455538,-556.41,0.00016712,2]
[361262308,1747403455548,-400.0,0.00016712,2]
[361262309,1747403455558,-400.0,0.00016712,2]
[361262310,1747403455567,-400.0,0.00016712,2]
[361262311,1747403455577,-400.0,0.00016712,2]
[361262312,1747403455586,-400.0,0.00016712,2]
[361262313,1747403455596,-400.0,0.00016712,2]
[361262314,1747403455606,-400.0,0.00016712,2]
[361262315,1747403455615,-400.0,0.00016712,2]
[361262316,1747403455625,-558.52,0.00016712,2]
[361262317,1747403455635,-400.0,0.00016712,2]
[361262318,1747403455645,-400.0,0.00016712,2]
[361262319,1747403455655,-644.74,0.00016712,2]
[361262320,1747403455665,-400.0,0.00016712,2]
[361262321,1747403455674,-559.59,0.00016712,2]
[361262322,1747403455685,-400.0,0.00016712,2]
[361262323,1747403455697,-400.0,0.00016712,2]
[361262324,1747403455706,-526.61992463,0.00016712,2]
[361262325,1747403455716,-646.19,0.00016712,2]
[361262326,1747403455726,-486.72,0.00016712,2]
[361262327,1747403455736,-400.0,0.00016712,2]
[361262328,1747403455745,-400.0,0.00016712,2]
[361262329,1747403455755,-400.0,0.00016712,2]
[361262330,1747403455765,-610.77,0.00016712,2]
[361262331,1747403455774,-476.68,0.00016712,2]
[361262332,1747403455784,-151.0,0.00016712,2]
[361262333,1747403455794,-173.053964,0.00016712,2]
[361262334,1747403455803,-438.27,0.00016712,2]
[361262335,1747403455813,-455.13,0.00016712,2]
[361262336,1747403455822,-400.0,0.00016712,2]
[361262337,1747403455831,-400.0,0.00016712,2]
[361262338,1747403455844,-400.0,0.00016712,2]
[361262339,1747403455854,-400.0,0.00016712,2]
[361262340,1747403455864,-400.0,0.00016712,2]
[361262341,1747403455874,-400.0,0.00016712,2]
[361262342,1747403455884,-400.0,0.00016712,2]
[361262343,1747403455894,-400.0,0.00016712,2]
[361262344,1747403455904,-400.0,0.00016712,2]
[361262345,1747403455914,-151.0,0.00016712,2]
[361262346,1747403455923,-151.0,0.00016712,2]
[361262347,1747403455934,-151.0,0.00016712,2]
[361262348,1747403455944,-151.0,0.00016712,2]
[361262349,1747403455954,-151.0,0.00016712,2]
[361262350,1747403455963,-400.0,0.00016712,2]
[361262351,1747403455973,-151.0,0.00016712,2]
[361262352,1747403455983,-400.0,0.00016712,2]
[361262353,1747403455993,-400.0,0.00016712,2]
[361262354,1747403456003,-1564.510144,0.00016712,2]
[361262355,1747403456012,-400.0,0.00016712,2]
[361262356,1747403456022,-400.0,0.00016712,2]
[361262357,1747403456032,-718.14,0.00016712,2]
[361262358,1747403456041,-400.0,0.00016712,2]
[361262359,1747403456051,-400.0,0.00016712,2]
[361262360,1747403456060,-400.0,0.00016712,2]
[361262361,1747403456069,-400.0,0.00016712,2]
[361262362,1747403456078,-151.0,0.00016712,2]
[361262363,1747403456088,-400.0,0.00016712,2]
[361262364,1747403456097,-151.0,0.00016712,2]
[361262365,1747403456107,-231.417772,0.00016712,2]
[361262366,1747403456116,-400.0,0.00016712,2]
[361262367,1747403456126,-400.0,0.00016712,2]
[361262368,1747403456136,-400.0,0.00016712,2]
[361262369,1747403456146,-400.0,0.00016712,2]
[361262370,1747403456155,-400.0,0.00016712,2]
[361262371,1747403456165,-400.0,0.00016712,2]
[361262372,1747403456174,-439.08,0.00016712,2]
[361262373,1747403456184,-400.0,0.00016712,2]
[361262374,1747403456194,-400.0,0.00016712,2]
[361262375,1747403456204,-400.0,0.00016712,2]
[361262376,1747403456214,-771.9,0.00016712,2]
[361262377,1747403456225,-507.44,0.00016712,2]
[361262378,1747403456234,-400.0,0.00016712,2]
[361262379,1747403456244,-400.0,0.00016712,2]
[361262380,1747403456254,-625.07,0.00016712,2]
[361262381,1747403456264,-400.0,0.00016712,2]
[361262382,1747403456275,-422.05,0.00016712,2]
[361262383,1747403456286,-400.0,0.00016712,2]
[361262384,1747403456296,-400.0,0.00016712,2]
[361262385,1747403456306,-400.0,0.00016712,2]
[361262386,1747403456316,-403.30760115,0.00016712,2]
[361262387,1747403456325,-400.0,0.00016712,2]
[361262388,1747403456336,-464.1,0.00016712,2]
[361262389,1747403456346,-400.0,0.00016712,2]
[361262390,1747403456356,-427.23,0.00016712,2]
[361262391,1747403456366,-400.0,0.00016712,2]
[361262392,1747403456375,-400.0,0.00016712,2]
[361262393,1747403456386,-400.0,0.00016712,2]
[361262394,1747403456395,-724.68,0.00016712,2]
[361262395,1747403456405,-400.0,0.00016712,2]
[361262396,1747403456415,-802.17,0.00016712,2]
[361262397,1747403456424,-346.33188007,0.00016712,2]
[361262398,1747403456434,-400.0,0.00016712,2]
[361262399,1747403456445,-410.92,0.00016712,2]
[361262400,1747403456455,-400.0,0.00016712,2]
[361262401,1747403456465,-400.0,0.00016712,2]
[361262402,1747403456475,-528.89,0.00016712,2]
[361262403,1747403456485,-400.0,0.00016712,2]
[361262404,1747403456495,-400.0,0.00016712,2]
[361262405,1747403456505,-353.66251677,0.00016712,2]
[361262406,1747403456514,-1505.91,0.00016712,2]
[361262407,1747403456524,-611.05,0.00016712,2]
[361262408,1747403456534,-554.91,0.00016712,2]
[361262409,1747403456543,-400.0,0.00016712,2]
[361262410,1747403456553,-400.0,0.00016712,2]
[361262411,1747403456563,-400.0,0.00016712,2]
[361262412,1747403456573,-400.0,0.00016712,2]
[361262413,1747403456583,-1744.11,0.00016712,2]
[361262414,1747403456593,-400.0,0.00016712,2]
[361262415,1747403456603,-400.0,0.00016712,2]
[361262416,1747403456613,-400.0,0.00016712,2]
[361262417,1747403456623,-400.0,0.00016712,2]
[361262418,1747403456633,-400.0,0.00016712,2]
[361262419,1747403456642,-400.0,0.00016712,2]
[361262420,1747403456652,-900.06,0.00016712,2]
[361262421,1747403456661,-1034.48,0.00016712,2]
[361262422,1747403456672,-535.49,0.00016712,2]
[361262423,1747403456681,-400.0,0.00016712,2]
[361262424,1747403456694,-400.0,0.00016712,2]
[361262425,1747403456704,-400.0,0.00016712,2]
[361262426,1747403456714,-400.0,0.00016712,2]
[361262427,1747403456723,-400.0,0.00016712,2]
[361262428,1747403456734,-400.0,0.00016712,2]
[361262429,1747403456744,-400.0,0.00016712,2]
[361262430,1747403456754,-400.0,0.00016712,2]
[361262431,1747403456763,-400.0,0.00016712,2]
[361262432,1747403456772,-400.0,0.00016712,2]
[361262433,1747403456782,-400.0,0.00016712,2]
[361262434,1747403456791,-400.0,0.00016712,2]
[361262435,1747403456801,-482.39092764,0.00016712,2]
[361262436,1747403456811,-400.0,0.00016712,2]
[361262437,1747403456822,-645.49,0.00016712,2]
[361262438,1747403456833,-904.47,0.00016712,2]
[361262439,1747403456846,-529.23,0.00016712,2]
[361262440,1747403456856,-400.0,0.00016712,2]
[361262441,1747403456865,-400.0,0.00016712,2]
[361262442,1747403456874,-400.0,0.00016712,2]
[361262443,1747403456883,-1043.36,0.00016712,2]
[361262444,1747403456894,-400.0,0.00016712,2]
[361262445,1747403456903,-400.0,0.00016712,2]
[361262446,1747403456913,-895.29,0.00016712,2]
[361262447,1747403456922,-412.88917868,0.00016712,2]
[361262448,1747403456932,-416.67,0.00016712,2]
[361262449,1747403456942,-400.0,0.00016712,2]
[361262450,1747403456951,-1209.52,0.00016712,2]
[361262451,1747403456961,-400.0,0.00016712,2]
[361262452,1747403456970,-547.14,0.00016712,2]
[361262453,1747403457060,-1022.99,0.00016712,2]
[361262454,1747403457070,-151.0,0.00016712,2]
[361262455,1747403457080,-151.0,0.00016712,2]
[361262456,1747403457090,-151.0,0.00016712,2]
[361262457,1747403457099,-151.0,0.00016712,2]
[361262458,1747403457109,-400.0,0.00016712,2]
[361262459,1747403457119,-151.0,0.00016712,2]
[361262460,1747403457133,-990.31,0.00016712,2]
[361262461,1747403457150,-151.0,0.00016712,2]
[361262462,1747403457159,-679.59,0.00016712,2]
[361262463,1747403457169,-151.0,0.00016712,2]
[361262464,1747403457178,-151.0,0.00016712,2]
[361262465,1747403457188,-151.0,0.00016712,2]
[361262466,1747403457198,-1335.84,0.00016712,2]
[361262467,1747403457207,-400.0,0.00016712,2]
[361262468,1747403457217,-209.676872,0.00016712,2]
[361262469,1747403457227,-400.0,0.00016712,2]
[361262470,1747403457236,-1000.9,0.00016712,2]
[361262471,1747403457245,-400.0,0.00016712,2]
[361262472,1747403457255,-647.63,0.00016712,2]
[361262473,1747403457264,-400.0,0.00016712,2]
[361262474,1747403457273,-400.0,0.00016712,2]
[361262475,1747403457283,-400.0,0.00016712,2]
[361262476,1747403457292,-537.68,0.00016712,2]
[361262477,1747403457303,-400.0,0.00016712,2]
[361262478,1747403457313,-400.0,0.00016712,2]
[361262479,1747403457322,-400.0,0.00016712,2]
[361262480,1747403457331,-509.62,0.00016712,2]
[361262481,1747403457340,-1630.36,0.00016712,2]
[361262482,1747403457350,-400.0,0.00016712,2]
[361262483,1747403457360,-400.0,0.00016712,2]
[361262484,1747403457370,-400.0,0.00016712,2]
[361262485,1747403457379,-1082.8,0.00016712,2]
[361262486,1747403457389,-936.29,0.00016712,2]
[361262487,1747403457399,-1729.53,0.00016712,2]
[361262488,1747403457408,-400.0,0.00016712,2]
[361262489,1747403457418,-422.89,0.00016712,2]
[361262490,1747403457428,-453.41,0.00016712,2]
[361262491,1747403457439,-400.0,0.00016712,2]
[361262492,1747403457449,-400.0,0.00016712,2]
[361262493,1747403457458,-400.0,0.00016712,2]
[361262494,1747403457468,-400.0,0.00016712,2]
[361262495,1747403457477,-400.0,0.00016712,2]